Cogmind - Beta 14 @@@ ROGUE MODE // 2024.11.27 @ 00:11:28 Player: opdo Result: Destroyed by Shrapnel Trap Performance ------------- Evolutions (0) 0 Regions Visited (2) 400 Robots Destroyed (27) 135 Value Destroyed (795) 795 Prototype IDs (2) 40 Alien Tech Used (0) 0 Bonus (0) 0 TOTAL SCORE: 1370 Bonus ------- None Cogmind --------- Core Integrity 0/250 Matter 67/300 Energy 193/200 System Corruption 0% Temperature Cool (1) Movement Walking (260) Ox2 Location -10/Subcaves Parts ------- > --- POWER (1) -------- Subdweller Power Source > --- PROPULSION (2) --- Aluminum Leg > --- UTILITY (2) ------ Small Storage Unit Makeshift Light Armor Plating > --- WEAPON (2) ------- Subdweller Machine Gun Barrage Gun > --- INVENTORY (8) ---- Light Treads Wheel Subdweller Monowheel Makeshift System Shield Subdweller Beam Cannon Subdweller Machine Gun Peak State ------------ > --- POWER ------------ Subdweller Power Source > --- PROPULSION ------- Aluminum Leg Aluminum Leg > --- UTILITY ---------- Small Storage Unit Makeshift Light Armor Plating > --- WEAPON ----------- Battle Cannon Subdweller Shrapnel Launcher > --- INVENTORY -------- Light Treads Wheel Subdweller Monowheel Makeshift System Shield Subdweller Beam Cannon Subdweller Machine Gun Barrage Gun [Rating: 14] Favorites ----------- Power Subdweller Power Source Engine Subdweller Power Source Propulsion Aluminum Leg Leg Aluminum Leg Wheel Wheel Utility Small Storage Unit Device Improved Terrain Scanner Storage Small Storage Unit Protection Makeshift Light Armor Plating Weapon Battle Cannon Ballistic Gun Assault Rifle Ballistic Cannon Battle Cannon Launcher Subdweller Shrapnel Launcher Special Weapon Mining Laser Build | -11 -10 -10 ------- Run | Yrd Mat Sub Slots Evolved . | . . . Power . | . . . Propulsion . | . . . Utility . | . . . Weapon . | . . . Parts Attached 35 | 7 4 24 Power 6 | 1 . 5 Engine 6 | 1 . 5 Core . | . . . Reactor . | . . . Propulsion 9 | 2 2 5 Treads . | . . . Leg 8 | 2 2 4 Wheel 1 | . . 1 Hover . | . . . Flight . | . . . Utility 3 | 2 . 1 Device 1 | 1 . . Storage 1 | 1 . . Processor . | . . . Hackware . | . . . Protection 1 | . . 1 Artifact . | . . . Weapon 17 | 2 2 13 Energy Gun . | . . . Energy Cannon . | . . . Ballistic Gun 6 | 2 1 3 Ballistic Cannon 6 | . . 6 Launcher 1 | . . 1 Special Weapon 4 | . 1 3 Impact Weapon . | . . . Slashing Weapon . | . . . Piercing Weapon . | . . . Special Melee Weapon . | . . . Unidentified Prototypes . | . . . Parts Lost 8 | . . 8 Power 2 | . . 2 Propulsion 2 | . . 2 Utility . | . . . Weapon 4 | . . 4 Highest Loss Streak 2 | . . 2 To Critical Strikes . | . . . Average Slot Usage (%) 96 | . 100 95 Engine 13 | . 14 13 Leg 22 | . 28 21 Wheel 2 | . . 2 Device 3 | . 14 . Storage 14 | . 14 14 Protection 10 | . . 13 Ballistic Gun 12 | . 27 6 Ballistic Cannon 10 | . . 13 Launcher 3 | . . 4 Special Weapon 1 | . . 2 Peak Build Rating 14 | 9 9 14 Average Rating 11 | 5 9 12 On Entrance 6 | . 9 9 Naked Turns . | . . . Heaviest Build 26 | 12 13 26 Greatest Support 20 | 20 20 20 Greatest Overweight (x) 2 | 1 . 2 Average Overweight (x) . | . . . Largest Inventory Capacity 8 | 8 8 8 Average Capacity 7 | 6 8 8 Most Carried 8 | 5 8 8 Average Carried 7 | 2 7 7 Final Capacity 8 | 8 8 8 Final Carried 8 | 5 8 6 Class Distribution -------------------- 100% | Mutant Dominant Class ---------------- Mutant | -10/Materials Mutant | -10/Subcaves Resources | -11 -10 -10 ----------- Run | Yrd Mat Sub Matter Collected 898 | 131 274 493 Remotely . | . . . Salvage Created 740 | 29 294 417 Parts 65 | 4 28 33 Haulers Intercepted 1 | . 1 . Recyclers Shooed . | . . . Parts Field Recycled . | . . . Retrieved Matter . | . . . Parts Self-Destructed 15 | . . 15 Prevented 1 | . . 1 Kills | -11 -10 -10 ------- Run | Yrd Mat Sub Combat Hostiles Destroyed 24 | . 7 17 Guns 10 | . 7 3 Cannons 8 | . . 8 AOE 6 | . . 6 Classes Destroyed 6 | 1 4 1 Tunneler 1 | 1 . . Hauler 1 | . 1 . Watcher 1 | . 1 . Swarmer 6 | . 3 3 Grunt 6 | . 4 2 Subdweller 12 | . . 12 Best Kill Streak 4 | 1 2 4 Combat Bots Only 4 | . 2 4 Max Kills in Single Turn 2 | 1 1 2 Gunslinging . | . . . Exploded 2 | . . 2 Melee . | . . . Uniques/NPCs Destroyed . | . . . Combat | -11 -10 -10 -------- Run | Yrd Mat Sub Hostile Shots Fired 82 | . 19 63 Missed 22 | . 6 16 Damage Taken 1308 | . 130 1178 Core 261 | . 15 246 Absorbed by Shields . | . . . Core Remaining (%) 100 | 100 . . Volleys Fired 84 | 1 37 46 Largest 2 | 2 2 2 Hottest 139 | 40 100 139 Shots Fired 156 | 2 71 83 Gun 86 | 2 68 16 Cannon 51 | . . 51 Launcher 9 | . . 9 Special 10 | . 3 7 Kinetic 146 | 2 68 76 Thermal 10 | . 3 7 Explosive . | . . . Electromagnetic . | . . . Robot Hit Streak 12 | 1 5 12 Robot Miss Streak 4 | 1 4 2 Penetration Max . | . . . Secondary Targets . | . . . Shots Hit Robots 81 | 1 34 46 Core Hits 43 | 1 16 26 Critical Kills . | . . . Critical Parts Destroyed . | . . . Critical Strikes 3 | . . 3 Blast 3 | . . 3 Melee Attacks . | . . . Impact . | . . . Slashing . | . . . Piercing . | . . . Sneak Attacks . | . . . Combat Hostiles . | . . . Follow-up Attacks . | . . . Damage Inflicted 1854 | 11 344 1499 Guns 485 | 11 342 132 Cannons 653 | . . 653 Explosions 714 | . . 714 Melee . | . . . Ramming 2 | . 2 . Kinetic 1852 | 11 342 1499 Thermal . | . . . Explosive . | . . . Electromagnetic . | . . . Impact . | . . . Slashing . | . . . Piercing . | . . . Highest Corruption . | . . . Average Corruption . | . . . Corruption Purged . | . . . Corruption Blocked . | . . . Overload Shots . | . . . Overflow Damage 15 | . . 15 Projectiles 11 | . . 11 Explosions 4 | . . 4 Melee . | . . . Knockbacks 8 | . . 8 Impact . | . . . Kinetic 7 | . . 7 Secondary 1 | . . 1 Self-Inflicted Damage 116 | . . 116 Shots 4 | . . 4 Rammed . | . . . Targets Rammed 2 | . 1 1 Kicked 2 | . 1 1 Crushed . | . . . Highest Temperature 24 | . 24 18 Average Temperature 12 | . 12 11 Received Heat Transfer 285 | . 42 243 Siege Activations . | . . . Robots Corrupted . | . . . Combat Hostiles . | . . . Parts Fried . | . . . Impact Corruptions 1 | . . 1 Robots Melted . | . . . Combat Hostiles . | . . . Parts Melted 2 | . . 2 Heat Transferred . | . . . Parts Sabotaged . | . . . Parts Stolen . | . . . Parts Stripped . | . . . Power Chain Reactions . | . . . Alert | -11 -10 -10 ------- Run | Yrd Mat Sub Peak Influence 270 | 5 270 . Initial 3 | . 3 . Average 127 | 1 142 . Maximum Alert Level 1 | . 1 . Low Security (%) 65 | 100 61 . Level 1 34 | . 38 . Level 2 . | . . . Level 3 . | . . . Level 4 . | . . . Level 5 . | . . . High Security . | . . . Max Security . | . . . Squads Dispatched 2 | . 2 . Investigation . | . . . Extermination . | . . . Reinforcement 2 | . 2 . Assault . | . . . Garrison . | . . . Intercept . | . . . Searches Triggered . | . . . Construction Impeded . | . . . Haulers Reinforced . | . . . Active Scanning Responses . | . . . Cargo Convoy Interrupts . | . . . Stealth | -11 -10 -10 --------- Run | Yrd Mat Sub Distress Signals . | . . . Communications Jammed . | . . . Distress Signals . | . . . Times Spotted 36 | . 18 18 Peak Tracking Total 4 | . 4 3 Tactical Retreats 2 | . 2 . Traps | -11 -10 -10 ------- Run | Yrd Mat Sub Traps Triggered 3 | . . 3 Indirectly . | . . . Trap Hack Attempts . | . . . Triggered . | . . . Disarmed . | . . . Reprogrammed . | . . . Reused . | . . . Traps Extracted . | . . . Installed 2 | . . 2 Triggered 2 | . . 2 Machines | -11 -10 -10 ---------- Run | Yrd Mat Sub Machines Disabled . | . . . Max in Single Turn . | . . . Machines Repaired . | . . . Machines Dismantled . | . . . Machines Sabotaged . | . . . Overloaded Fab Kills . | . . . Hacking | -11 -10 -10 --------- Run | Yrd Mat Sub Machines Accessed 6 | . 5 1 Terminals 4 | . 4 . Fabricators . | . . . Repair Stations . | . . . Recycling Units 1 | . 1 . Scanalyzers . | . . . Garrison Access . | . . . Total Hacks 18 | . 14 4 Successful 9 | . 5 4 Failed 9 | . 9 . Catastrophic 1 | . 1 . Database Lockouts . | . . . Manual 12 | . 12 . Terminals 12 | . 12 . Fabricators . | . . . Repair Stations . | . . . Recycling Units 2 | . 2 . Scanalyzers . | . . . Garrison Access . | . . . Terminal Hacks 8 | . 4 4 Record 4 | . . 4 Robot Analysis 2 | . 2 . Prototype ID Bank 1 | . 1 . Recall Reinforcements 1 | . 1 . Fabricator Hacks . | . . . Repair Station Hacks . | . . . Recycling Unit Hacks . | . . . Scanalyzer . | . . . Garrison Access Hacks . | . . . Unauthorized Hacks 1 | . 1 . Terminals . | . . . Fabricators . | . . . Repair Stations . | . . . Recycling Units 1 | . 1 . Reject 1 | . 1 . Scanalyzers . | . . . Garrison Access . | . . . Data Cores Recovered . | . . . Used . | . . . Hacking Detections 5 | . 5 . Full Trace Events . | . . . Feedback Events . | . . . Feedback Blocked . | . . . Robot Schematics Acquired . | . . . Robots Built . | . . . Authchips . | . . . Time . | . . . Total Robot Build Rating . | . . . Part Schematics Acquired . | . . . Parts Built . | . . . Authchips . | . . . Time . | . . . Total Part Build Rating . | . . . Parts Repaired . | . . . Time . | . . . Parts Recycled . | . . . Recycled Matter . | . . . Retrieved Matter . | . . . Retrieved Components . | . . . Parts Scanalyzed . | . . . Part Schematics Acquired . | . . . Parts Damaged . | . . . Bothacking | -11 -10 -10 ------------ Run | Yrd Mat Sub Used RIF Installer . | . . . Robots Hacked . | . . . Non-combat . | . . . Combat . | . . . Robot Hacks Applied . | . . . Relay Couplers Released . | . . . Fabnet Peak Effective % . | . . . Robots Rewired . | . . . Allies Hacked . | . . . Hacks Repelled . | . . . Allies | -11 -10 -10 -------- Run | Yrd Mat Sub Total Allies . | . . . Largest Group . | . . . Highest-Rated Group . | . . . Highest-Rated Ally . | . . . Total Orders . | . . . Ally Attacks . | . . . Total Damage . | . . . Kills . | . . . Allies Corrupted . | . . . Allies Melted . | . . . Intel | -11 -10 -10 ------- Run | Yrd Mat Sub Robot Analysis Total 2 | . 2 . Derelict Logs Recovered . | . . . Drone Launches . | . . . Drone Recoveries . | . . . Exploration | -11 -10 -10 ------------- Run | Yrd Mat Sub Turns Passed 2234 | 66 558 1610 Spaces Moved 1358 | 44 329 985 Core 7 | 7 . . Treads . | . . . Legs 1066 | 37 329 700 Wheels 285 | . . 285 Hover . | . . . Flight . | . . . Fastest Speed 50 | 50 120 95 Average Speed 134 | 110 120 140 Slowest Speed 260 | 120 120 260 Overloaded Moves . | . . . Propulsion Burnouts . | . . . Robots Hopped . | . . . Cave-ins Triggered . | . . . Exploration Rate (%) 43 | 3 67 60 Regions Visited 2 Branch Regions 1 Pre-discovered Areas . | . . . Known Exits Taken . | . . . Unknown Exits Taken 2 | 1 1 . Scrap Searched 13 | . . 13 Spaces Dug . | . . . Terrain Destroyed 110 | . . 110 Melee . | . . . Projectile 1 | . . 1 AOE 109 | . . 109 Terrain Rammed . | . . . Walls Destroyed . | . . . Machines Disabled . | . . . Actions | -11 -10 -10 --------- Run | Yrd Mat Sub Total 1590 | 56 421 1113 Wait 75 | . 44 31 Move 1356 | 43 328 985 Hop . | . . . Pick Up 18 | 5 4 9 Fast Attach 14 | 7 . 7 Attach 5 | . . 5 Detach . | . . . Swap 16 | . 4 12 Drop 18 | . 3 15 Fire 84 | 1 37 46 Melee . | . . . Ram . | . . . Kick 2 | . 1 1 Crush . | . . . Escape Stasis . | . . . Rewire . | . . . Trap 2 | . . 2 Miscellaneous . | . . . Route ------- -11/Scrapyard -10/Materials (discovered 5 exits: [*Mat x2] / [*Min x2] / *Sub) -10/Subcaves (discovered 1 exit: [*Mat]) History --------- Turn | Location | Event 7 | -11/Scrapyard | Discovered new exit (range 15) 67 | -11/Scrapyard | Entered Materials 102 | -10/Materials | Discovered new exit (range 10) 295 | -10/Materials | Discovered new exit (range 7) 331 | -10/Materials | Build established: Mutant 446 | -10/Materials | Discovered new exit (range 14) 509 | -10/Materials | Discovered new exit (range 14) 563 | -10/Materials | Discovered new exit (range 15) 625 | -10/Materials | Entered Subcaves 626 | -10/Subcaves | Shifting Twisted Machinery released Battle Cannon 628 | -10/Subcaves | Shifting Twisted Machinery released Mak. Light Armor Plating 658 | -10/Subcaves | Ambushed by Subdwellers from Twisted Machinery 893 | -10/Subcaves | Visited Clippyterm 896 | -10/Subcaves | Learned Factory stockpile data 924 | -10/Subcaves | Discovered new exit (range 7) 1189 | -10/Subcaves | A swath of the cavern ceiling suddenly collapsed 1396 | -10/Subcaves | A swath of the cavern ceiling suddenly collapsed 1496 | -10/Subcaves | Shifting Twisted Machinery released Piercing Trap 1502 | -10/Subcaves | Shifting Twisted Machinery released Barrage Gun 1602 | -10/Subcaves | Disturbed a concealed Subdweller 1606 | -10/Subcaves | Core integrity fell below 50% 1676 | -10/Subcaves | Ambushed by Subdweller buried in earth 1676 | -10/Subcaves | Ambushed by Subdweller buried in earth 1845 | -10/Subcaves | A Subdweller sparked back to life 1847 | -10/Subcaves | Core integrity fell below 20% 1848 | -10/Subcaves | Ambushed by Subdweller buried in earth 2235 | -10/Subcaves | Destroyed by Shrapnel Trap Last Messages --------------- 21-SLJ(R) destroyed. Battle Cannon destroyed. X2-VD5(R) destroyed. 3J-ORA(R): "HIDIE!" 3J-ORA(R) destroyed. Acquired 9 matter. Acquired Sub. Machine Gun. OV-C1U(O) collects matter. OV-C1U(O) puts together Sub. Beam Cannon. Sub. Power Source shoots sparks and powers down. Dropped Broken Sub. Power Source. Kicked CG-778(u). Sub. Shrapnel Launcher shoots sparks and powers down. Triggered Piercing Trap. Spikes shoot up from the floor. Broken Sub. Shrapnel Launcher destroyed. Triggered Shrapnel Trap. An expanding cloud of shrapnel blasts out in all directions. Map ----- +----------------------------------------------------+ | ???????# #???????????????## ### | | ???????### ###????????????????## #### | | ?????????#######???????????????????## ## # | | ????????????????????????????????????# #### | | ????????????????????????????????????# # # # #?? | | ????????????????????????????????????# ??## #?? | | ???????????????????????????????????? ???# # #?? | | ????????????????????????????????????###???## #?? | | ???????????????????????????????????????##### #?? | | ?????????????????????????????????????### ##? | | ?????????????????????????????????????# #? | | ????????????????????????????????????## #? | | ????????????????????????????????????# *## #? | | ????????????????????????????????????# ### ###? | | ????????????????????????????????????## #####??? | | ????? ???????????????????????????????## ###???# | | ? ????????????????????????????????## ##?## | | ? ?????????######?????????????????### ### | | ?? ?????????? ##???????????##### ## | | ??? ???????????? ?????????### ## | | ???# ##???????????? ##????#### | | ???# ?????????????# ###??# ##### | | ???# ?????????????# % #### ##???# ## | | ???# #?????????????# # ##???## | | #### #######???#####^ ##???## | | # # ##### ### @#### ####?## | | % ^ # # ### ### | | % ##?# " | | # # ###### #??## " "##"" | | #########????###### ###???# """""#### | | #??????????????## ##?????###"#"""# | | ##??????????????####??????#""###"#"# | | ##??????????????????????###"# "#"# | | ### #?????????????????????? #""##### " | | #?## ##????????????????????? ###"#?# # | | #### #???###????????????????????? ##" "### | | ##?####?????????????????????????????#"""#""## | | ##?????????????????????????????????###"""#"# | | #???????????????????????????????????#####"## | | #???????????????????????????????????????##"#"" | | #????????????????????????????????????????# " # | | #????????????????????????????????????????##### | | #????????????????????????????????????????????? | | ## ##???????????????????????????????????????????? | | ## #???????????????????????????????????????????? | | # #???????????????????????????????????????????? | | # ##???????????????????????????????????????????? | | # #???????????????????????????????????????????? | | ## #???????????????????????????????????????????? | | ?## #???????????????????????????????????????????? | +----------------------------------------------------+ Best States ------------- Heat Dissipation 25 Energy Generation 15 Energy Capacity 250 Matter Stores 300 Matter Capacity 300 Sight Range 16 Terrain Scan Range 16 Terrain Scan Density 10 Armor Coverage 100 Evasion (%) 55 Item Schematics ----------------- None Robot Schematics ------------------ None Fabricated ------------ Nothing Alien Tech Used ----------------- None Achievements -------------- None Challenges ------------ None Game ------ Seed NodeGrenadePod Manual? 0 Play Time 00:14:05 Cumulative 59.0 hours Start 2024.11.26 @ 23:57:53 End 2024.11.27 @ 00:11:28 Sessions 1 Manual Loads 0 Difficulty Rogue Special Mode None Game No. 175 Rogue 173 Adventurer 2 Explorer 0 Win Type - Total 0 Types 0/0/0/0/0/0/0/0/0 Lore% 53 Gallery% 51 Achievement% 37 Wizard Run 0 Options --------- Layout 2 ASCII 0 Keyboard 0 Movement Arrows Keybinds 0 Fullscreen 2 Font 24/Smallcaps Map View 50x44 Zoom Use 0% Tactical HUD 0 Map Filters NONE Filters NONE Steam 1 RUN: 3ee385b0-fbea-4c71-b47d-c00e5bd1c2ab